bitfinex-derivatives/quotes_ETHF0:USTF0_20250114
["timestamp","ask_amount","ask_price","bid_price","bid_amount"]
[1736869633082,0.79029,3208.4,3208.0,0.31182]
[1736869633274,3.49953136,3208.3,3208.2,2.71515294]
[1736869633473,3.49953136,3208.3,3208.2,3.02695294]
[1736869633674,3.2078,3208.7,3208.1,3.28421246]
[1736869633873,3.2078,3208.7,3208.2,0.4667]
[1736869634074,3.2078,3208.7,3208.2,0.9458]
[1736869634277,0.31177,3208.6,3208.2,0.9458]
[1736869634577,0.31175,3208.8,3208.3,3.51959]
[1736869634884,1.71583,3209.4,3208.5,0.31177]
[1736869634885,3.91742391,3209.1,3208.5,0.31177]
[1736869635181,3.91741391,3209.1,3208.4,3.28421246]
[1736869635380,0.31173,3209.0,3208.5,0.31177]
[1736869635569,3.60569391,3209.3,3208.3,3.2078]
[1736869635773,0.31175,3208.8,3208.3,3.46014637]
[1736869635973,3.28421246,3209.2,3208.3,3.2078]
[1736869636177,0.31175,3208.8,3208.3,3.51959]
[1736869636380,0.31177,3208.6,3208.4,40.8]
[1736869636683,0.77933,3209.0,3208.3,3.2078]
[1736869636980,0.31178,3208.5,3208.2,0.9458]
[1736869637173,3.46813914,3208.9,3208.2,41.7458]
[1736869637369,3.46813914,3208.9,3208.2,1.2576]
[1736869637573,3.46813914,3208.9,3208.2,0.9458]
[1736869637776,3.77987914,3208.9,3208.4,0.31178]
[1736869637978,3.46813914,3208.9,3208.3,3.2078]
[1736869638185,0.31178,3208.5,3208.3,3.2078]
[1736869638483,3.46813914,3208.9,3208.2,0.9458]
[1736869638683,0.31175,3208.8,3208.3,0.31179]
[1736869638984,0.31175,3208.8,3208.3,3.2078]
[1736869639287,3.46813914,3208.9,3208.3,3.2078]
[1736869639586,0.31178,3208.5,3208.3,3.2078]
[1736869639787,3.46813914,3208.9,3208.4,3.2078]
[1736869640085,3.2078,3209.2,3208.4,3.51958]
[1736869640385,3.53288293,3208.9,3208.4,3.2078]
[1736869640679,0.31177,3208.6,3208.4,3.2078]
[1736869640886,3.53288293,3209.0,3208.4,3.2078]
[1736869641089,3.2078,3209.2,3208.5,3.28421246]
[1736869641387,0.31174,3208.9,3208.4,3.51958]
[1736869641687,0.31172,3209.1,3208.6,0.31176]
[1736869641885,0.31173,3209.0,3208.6,0.31176]
[1736869642381,3.2078,3209.2,3208.4,3.2078]
[1736869642574,0.31176,3208.7,3208.4,3.2078]
[1736869642780,0.31174,3208.9,3208.4,3.51958]
[1736869643082,3.34087912,3208.6,3208.4,3.2078]
[1736869643279,3.39096497,3208.8,3208.4,3.2078]
[1736869643477,0.31177,3208.6,3208.2,0.9458]
[1736869643685,0.469,3208.7,3208.2,0.9458]
[1736869643987,3.83185527,3208.6,3208.2,0.9458]
[1736869644489,0.31178,3208.5,3208.2,0.9458]
[1736869644787,3.83185527,3208.6,3208.2,0.9458]
[1736869645081,3.52008527,3208.6,3208.4,3.2078]
[1736869645287,3.2078,3209.2,3208.8,0.31174]
[1736869645580,3.2078,3209.2,3208.8,6.49201246]
[1736869645885,0.31166,3209.7,3209.3,0.3117]
[1736869646087,0.31167,3209.6,3209.2,3.51951]
[1736869646281,3.56547766,3209.3,3209.2,3.2078]
[1736869646481,0.3117,3209.3,3209.2,3.2078]
[1736869646784,0.31169,3209.4,3209.2,3.2078]
[1736869646986,0.31167,3209.6,3209.2,3.2078]
[1736869647180,0.31167,3209.6,3209.2,3.5195]
[1736869647181,3.53175429,3209.3,3209.2,3.5195]
[1736869647379,3.53175429,3209.5,3209.2,3.5195]
[1736869647579,0.31168,3209.5,3209.2,3.5195]
[1736869647782,3.53175429,3209.6,3209.2,3.2078]
[1736869647981,3.53175429,3209.4,3209.3,0.3117]
[1736869648180,3.2078,3209.8,3209.2,6.49201246]
[1736869648181,3.51945,3209.8,3209.5,0.31167]
[1736869648381,3.51945,3209.8,3209.3,0.3117]
[1736869648583,3.51945,3209.8,3209.5,0.31167]
[1736869648783,3.2078,3209.8,3209.6,0.31166]
[1736869648989,0.4834,3209.9,3209.2,6.49201246]
[1736869649173,0.31163,3210.0,3209.2,6.49201246]
[1736869649373,3.7045,3210.4,3209.6,3.2078]
[1736869649582,3.30923616,3210.0,3209.7,0.4621]
[1736869649787,3.51939,3210.4,3209.8,3.28421246]
[1736869650080,0.31161,3210.3,3210.0,3.51942]
[1736869650477,3.2078,3210.4,3210.0,3.2078]
[1736869650684,3.5194,3210.4,3210.1,0.31162]
[1736869650988,3.2078,3210.4,3210.0,44.0078]
[1736869651177,0.31162,3210.1,3209.8,0.4659]
[1736869651383,3.2078,3210.4,3209.8,0.4659]
[1736869651384,0.31161,3210.2,3209.9,0.31163]
[1736869651683,3.5194,3210.4,3210.0,41.11163]
[1736869651885,0.3116,3210.3,3210.0,40.8]
[1736869652494,0.3116,3210.3,3209.9,0.31163]
[1736869652686,0.31163,3210.0,3209.8,0.4659]
[1736869652892,3.35247162,3210.2,3209.8,0.4659]
[1736869653086,0.31163,3210.1,3209.8,0.4659]
[1736869653391,3.2078,3210.4,3209.7,0.4621]
[1736869653692,3.2078,3209.8,3209.3,0.4868]
[1736869653893,0.31169,3209.4,3209.3,0.4868]
[1736869654189,0.31172,3209.1,3209.0,3.2078]
[1736869654588,0.31172,3209.1,3208.4,0.4868]
[1736869654589,3.5102094,3209.1,3208.4,0.4868]
[1736869654887,0.31176,3208.8,3208.4,0.79858]
[1736869655187,3.6751,3209.0,3208.4,0.79858]
[1736869655188,3.6751,3209.0,3208.4,41.2868]
[1736869655381,0.31175,3208.8,3208.4,41.2868]
[1736869655590,3.80294932,3208.9,3208.6,0.31176]
[1736869655789,3.80294932,3208.9,3208.4,41.2868]
[1736869655790,3.49120932,3208.9,3208.5,0.31177]
[1736869655984,0.31175,3208.8,3208.5,0.31177]
[1736869656184,3.49120932,3208.9,3208.4,41.2868]
[1736869656380,3.49120932,3208.9,3208.7,0.31175]
[1736869656596,0.4673,3209.0,3208.6,0.31176]
[1736869656789,0.4673,3209.0,3208.4,41.2868]
[1736869656790,0.31175,3208.9,3208.5,0.31177]
[1736869656986,0.4673,3209.0,3208.4,41.2868]
[1736869657188,3.54663491,3208.8,3208.4,41.59858]
[1736869657583,0.4636,3208.9,3208.4,40.8]
[1736869657790,0.31178,3208.5,3208.4,40.8]
[1736869658098,0.31178,3208.5,3208.3,3.2078]
[1736869658295,0.31179,3208.4,3208.3,3.2078]
[1736869658792,0.31179,3208.4,3208.3,44.0078]
[1736869658991,0.31178,3208.5,3208.3,40.8]
[1736869659193,0.31177,3208.6,3208.3,40.8]
[1736869659493,3.63752526,3208.4,3208.3,40.8]
[1736869659895,0.31179,3208.4,3208.3,40.8]
[1736869660096,3.85894045,3208.4,3208.3,40.8]
[1736869660299,0.31182,3208.0,3207.9,3.2078]
[1736869660697,0.4723,3208.3,3207.9,44.0078]
[1736869661098,3.46981476,3208.2,3207.9,44.0078]
[1736869661297,3.46981476,3208.2,3207.9,44.31963]
[1736869661598,0.31182,3208.1,3207.9,44.0078]
[1736869661792,3.78162476,3208.2,3207.9,44.0078]
[1736869661993,3.46981476,3208.0,3207.9,44.0078]
[1736869662199,3.35485915,3208.1,3207.9,44.31963]
[1736869662397,3.35485915,3208.1,3207.9,44.0078]
[1736869662597,3.2078,3208.6,3207.9,44.0078]
[1736869662798,0.3118,3208.3,3207.9,44.0078]
[1736869662995,3.35485915,3208.5,3207.9,44.31963]
[1736869663303,0.3118,3208.3,3207.9,44.31963]
[1736869663802,0.31179,3208.4,3208.0,0.31182]
[1736869664003,3.35485915,3208.5,3207.9,44.0078]
[1736869664206,3.73929368,3208.3,3207.9,44.31963]
[1736869664401,0.3118,3208.3,3207.9,44.31963]
[1736869665105,3.2078,3208.6,3207.9,44.0078]
[1736869665307,0.3118,3208.3,3207.9,44.31963]
[1736869665507,0.3118,3208.3,3207.9,44.0078]
[1736869665804,0.31179,3208.4,3208.0,0.31182]
[1736869666013,0.3118,3208.3,3207.9,44.31963]
[1736869666308,3.85868799,3208.3,3207.9,44.31963]
[1736869666505,0.3118,3208.3,3207.9,44.31963]
[1736869666704,0.4679,3208.8,3208.1,3.28421246]
[1736869666907,0.4679,3208.8,3208.4,3.2078]
[1736869667103,6.55252828,3208.7,3208.0,0.93]
[1736869667309,3.28421246,3208.1,3207.3,3.2078]
[1736869667528,3.28421246,3207.7,3206.9,3.98183]
[1736869667814,3.2078,3207.8,3206.9,44.4699]
[1736869668015,3.34472828,3207.6,3206.9,47.75411246]
[1736869668218,0.9584,3208.0,3207.3,3.2078]
[1736869668409,3.2078,3208.7,3207.7,3.2078]
[1736869668621,0.31179,3208.4,3208.0,0.31182]
[1736869668811,3.82271908,3208.5,3208.1,0.31181]
[1736869669008,3.51093908,3208.3,3208.1,0.31181]
[1736869669421,3.5403477,3208.4,3207.8,0.4621]
[1736869669619,0.31179,3208.4,3208.1,0.31181]
[1736869670123,3.5403477,3208.3,3208.1,0.31181]
[1736869670915,3.5403477,3208.3,3208.2,0.3118]
[1736869671124,4.01992,3209.1,3208.3,0.77949]
[1736869671320,0.5004,3209.1,3208.8,0.31174]
[1736869671624,0.31173,3209.0,3208.7,0.31175]
[1736869672027,3.51564953,3208.9,3208.7,0.31175]
[1736869672420,0.31175,3208.8,3208.6,40.8]
[1736869672617,0.31176,3208.7,3208.6,40.8]
[1736869672922,3.72191747,3208.7,3208.6,40.8]
[1736869673125,3.72191747,3208.7,3208.4,0.459]
[1736869673126,3.72191747,3208.7,3208.4,0.77078]
[1736869673311,0.31177,3208.6,3208.4,0.459]
[1736869673516,0.31178,3208.5,3208.4,0.459]
[1736869673815,0.31178,3208.5,3208.2,3.2078]
[1736869673816,3.59056237,3208.5,3208.2,3.2078]
[1736869674012,3.59056237,3208.5,3208.4,0.31179]
[1736869674216,0.31175,3208.8,3208.5,0.31177]
[1736869674417,0.31176,3208.7,3208.4,0.31178]
[1736869674619,0.31177,3208.6,3208.3,0.31179]
[1736869674921,0.31177,3208.6,3208.2,3.2078]
[1736869674922,3.28705919,3208.5,3208.4,0.31178]
[1736869675322,0.4852,3208.9,3208.7,0.31175]
[1736869675512,0.4593,3209.2,3208.2,5.91754758]
[1736869675719,0.81212,3209.1,3208.8,0.31174]
[1736869675913,0.5004,3209.1,3208.6,3.2078]
[1736869676120,0.81212,3209.1,3208.8,0.31174]
[1736869676314,0.81212,3209.1,3208.9,0.31174]
[1736869676621,0.5004,3209.1,3208.7,0.4698]
[1736869676826,0.31173,3209.0,3208.8,0.31174]
[1736869677029,0.81212,3209.1,3208.7,0.4698]
[1736869677325,0.5004,3209.1,3208.7,0.4698]
[1736869677519,0.5004,3209.1,3209.0,0.31173]
[1736869677720,0.31173,3209.0,3208.8,0.31174]
[1736869678121,0.31173,3209.0,3208.7,0.4698]
[1736869678330,0.5004,3209.1,3208.7,0.4698]
[1736869678525,0.31174,3208.9,3208.8,0.31174]
[1736869678828,0.5004,3209.1,3209.0,0.31173]
[1736869679324,0.81212,3209.1,3209.0,0.31173]
[1736869680124,0.5004,3209.1,3209.0,0.31173]
[1736869680326,0.4852,3209.4,3208.8,40.8]
[1736869680527,0.31171,3209.2,3209.1,0.31171]
[1736869680722,3.41668149,3209.1,3208.8,43.50974758]
[1736869681023,0.3117,3209.3,3209.2,0.31171]
[1736869681617,0.4852,3209.4,3208.8,0.4755]
[1736869681825,0.31176,3208.7,3208.6,3.2078]
[1736869682022,3.2078,3209.2,3208.2,3.2078]
[1736869682023,0.3118,3208.3,3208.2,3.2078]
[1736869682220,0.77934,3209.0,3208.2,3.2078]
[1736869682221,0.4958,3208.6,3208.2,3.2078]
[1736869682529,0.31178,3208.5,3208.3,0.31179]
[1736869682725,0.4958,3208.6,3208.2,3.2078]
[1736869683025,3.2078,3208.3,3207.5,0.4649]
[1736869683229,2.70974758,3208.2,3207.6,0.79285]
[1736869683528,0.31185,3207.8,3207.6,0.481]
[1736869683721,6.16852517,3208.2,3207.6,0.481]
[1736869683924,3.45877759,3207.7,3207.6,0.481]
[1736869684120,0.31185,3207.8,3207.6,0.481]
[1736869684631,0.77966,3207.6,3207.0,3.2078]
[1736869684823,2.70974758,3207.2,3206.6,3.2078]
[1736869685018,0.31194,3206.8,3206.6,3.2078]
[1736869685330,3.27016924,3206.7,3206.6,3.2078]
[1736869685528,3.58211924,3206.7,3206.6,3.2078]
[1736869685728,3.58211924,3206.7,3206.1,40.8]
[1736869685729,0.31195,3206.7,3206.1,44.0078]
[1736869685922,0.312,3206.2,3206.1,3.2078]
[1736869686119,3.2078,3206.2,3205.6,0.4625]
[1736869686316,0.31204,3205.8,3205.6,0.4625]
[1736869686521,0.31208,3205.4,3205.3,3.2078]
[1736869688520,0.31212,3205.0,3204.6,0.31215]
[1736869688731,0.31211,3205.1,3204.7,0.31214]
[1736869689029,0.31211,3205.1,3204.5,3.2078]
[1736869689226,3.55706293,3205.0,3204.5,3.2078]
[1736869689429,0.31213,3204.9,3204.5,3.2078]
[1736869689631,0.31214,3204.8,3204.5,3.2078]
[1736869689827,3.86920293,3204.8,3204.5,3.2078]
[1736869690028,3.86919293,3204.9,3204.5,3.51996]
[1736869690331,3.2078,3205.2,3204.5,3.2078]
[1736869690332,3.60856607,3204.7,3204.5,3.2078]
[1736869690625,3.92070607,3204.8,3204.5,3.2078]
[1736869690835,0.31214,3204.8,3204.5,3.2078]
[1736869691032,3.60856607,3204.6,3204.5,3.2078]
[1736869691230,3.28873095,3205.3,3204.1,3.2078]
[1736869691231,0.31219,3204.3,3204.1,3.2078]
[1736869691528,0.31219,3204.3,3203.5,3.2078]
[1736869691529,3.38765534,3204.2,3203.5,3.2078]
[1736869691731,0.31224,3203.7,3203.5,3.2078]
[1736869691921,0.31225,3203.6,3203.5,3.2078]
[1736869692124,3.38765534,3203.6,3203.5,3.2078]
[1736869692325,3.69990534,3203.6,3203.5,3.2078]
[1736869692525,0.31225,3203.6,3203.5,3.2078]
[1736869692731,3.81452238,3203.6,3203.5,3.2078]
[1736869693329,3.81452238,3203.6,3203.1,3.2078]
[1736869693523,3.50227238,3203.6,3203.1,3.5201]
[1736869693834,0.31225,3203.7,3203.1,3.5201]
[1736869694235,3.25186166,3203.8,3203.1,3.2078]
[1736869694236,0.31227,3203.5,3203.1,3.2078]
[1736869694627,3.54178721,3203.4,3203.1,3.2078]
[1736869695031,3.54178721,3203.5,3203.2,40.8]
[1736869695234,3.2078,3204.3,3203.2,44.08873095]
[1736869695429,0.80309,3204.2,3203.6,3.2078]
[1736869695633,3.48148963,3204.0,3203.9,0.31222]
[1736869695939,0.31214,3204.8,3204.1,0.3122]
[1736869696129,3.2078,3204.8,3203.9,3.2078]
[1736869696328,3.51584337,3204.7,3203.9,3.2078]
[1736869696631,3.51584337,3204.7,3204.1,0.3122]
[1736869696934,3.51584337,3204.7,3204.3,0.31218]
[1736869697130,3.51584337,3204.7,3204.4,0.31217]
[1736869697440,3.51584337,3204.7,3204.2,40.8]
[1736869697831,3.51584337,3204.7,3204.5,0.31216]
[1736869698332,3.51584337,3204.7,3204.2,40.8]
[1736869698333,3.51584337,3204.7,3204.6,0.31215]
[1736869698538,3.2078,3205.3,3204.4,3.28873095]
[1736869698738,3.2078,3205.3,3205.0,0.31211]
[1736869698934,3.2078,3205.3,3204.7,3.2078]
[1736869699134,0.31212,3205.0,3204.7,3.2078]
[1736869699335,3.28873095,3205.1,3204.3,3.2078]
[1736869699536,3.51444935,3204.9,3204.3,3.2078]
[1736869699740,0.31214,3204.8,3204.3,3.51998]
[1736869700042,3.2078,3205.3,3204.3,3.2078]
[1736869700043,3.51444935,3204.7,3204.3,3.2078]
[1736869700242,3.51444935,3204.7,3204.6,0.31215]
[1736869700535,3.46685672,3205.0,3204.4,40.8]
[1736869700837,0.3121,3205.2,3204.5,0.31216]
[1736869701034,3.77898672,3204.9,3204.5,0.31216]
[1736869701232,0.31216,3204.6,3204.4,40.8]
[1736869701437,0.31216,3204.6,3204.3,3.2078]
[1736869701639,3.1977352,3204.5,3204.3,3.51998]
[1736869702133,3.98803,3205.3,3204.3,3.2078]
[1736869702134,3.50942728,3204.6,3204.3,3.2078]
[1736869702336,3.2078,3205.3,3204.3,3.2078]
[1736869702639,3.2078,3204.8,3204.3,3.2078]
[1736869702842,0.31215,3204.7,3204.3,3.51998]
[1736869703043,3.84334404,3204.7,3204.3,3.51998]
[1736869703334,3.84334404,3204.7,3204.3,3.2078]
[1736869703335,3.53119404,3204.7,3204.3,3.2078]
[1736869703541,3.53119404,3204.7,3204.5,0.31216]
[1736869703730,3.84334404,3204.7,3204.4,0.31217]
[1736869703929,3.53119404,3204.7,3204.3,3.2078]
[1736869704546,0.31216,3204.6,3204.3,3.2078]
[1736869704836,3.82730481,3204.5,3204.3,3.2078]
[1736869705135,3.2078,3204.8,3204.3,3.2078]
[1736869705335,3.70120202,3204.6,3204.3,3.51998]
[1736869705637,3.38904202,3204.4,3204.3,3.51998]
[1736869705836,3.38904202,3204.5,3204.4,0.31217]
[1736869706042,3.2078,3205.2,3204.8,0.31213]
[1736869706243,7.12180707,3205.2,3204.8,0.31213]
[1736869706443,3.2078,3205.2,3204.4,0.78044]
[1736869706742,3.91401707,3205.1,3204.7,0.31214]
[1736869706945,3.91401707,3205.1,3204.3,7.27700095]
[1736869706946,3.60190707,3205.1,3204.3,3.2078]
[1736869707444,3.60190707,3205.1,3205.0,0.31212]
[1736869707645,3.70993562,3205.7,3204.7,3.2078]
[1736869707946,0.3121,3205.2,3205.1,3.2078]
[1736869708136,3.2078,3205.2,3204.8,0.79733]
[1736869708444,6.45446478,3205.2,3204.8,0.4852]
[1736869708833,0.31211,3205.1,3204.8,0.4852]
[1736869709337,3.43064905,3205.0,3204.9,0.31213]
[1736869709645,3.2078,3205.2,3205.1,0.31211]
[1736869710147,3.2078,3205.2,3204.9,0.31213]
[1736869710343,6.78860842,3205.2,3204.8,0.79733]
[1736869710841,3.2078,3205.2,3205.1,0.31211]
[1736869711048,3.2078,3205.6,3205.0,3.2078]
[1736869711249,3.2078,3205.6,3204.8,0.4852]
[1736869711250,0.31208,3205.4,3204.8,0.4852]
[1736869711544,0.31212,3205.0,3204.8,0.4852]
[1736869711750,3.49629201,3205.3,3204.7,0.31214]
[1736869711938,3.80842201,3204.9,3204.6,3.2078]
[1736869712141,3.49629201,3204.9,3204.7,0.31214]
[1736869712337,3.49629201,3204.9,3204.8,0.31214]
[1736869712648,3.51986,3205.6,3205.2,0.31209]
[1736869712842,3.51986,3205.6,3204.7,4.06910095]
[1736869712843,3.2078,3205.6,3204.7,4.06910095]
[1736869713045,3.57671543,3205.5,3204.8,0.38568324]
[1736869713243,3.26464543,3205.5,3204.9,0.38568324]
[1736869713443,0.3121,3205.2,3204.8,0.31213]
[1736869713645,3.26464543,3205.5,3204.9,0.38636595]
[1736869713848,3.58789702,3205.1,3205.0,0.69846242]
[1736869714149,0.31208,3205.4,3205.0,0.69846242]
[1736869714351,0.31208,3205.4,3205.0,0.31211]
[1736869714641,3.60797904,3205.3,3205.1,0.38703449]
[1736869714846,3.60797904,3205.3,3204.6,3.2078]
[1736869714847,0.31209,3205.3,3205.0,0.31211]
[1736869715051,0.31209,3205.3,3205.1,0.38702793]
[1736869715245,3.2078,3205.6,3205.2,0.38695982]
[1736869715446,0.31208,3205.4,3205.3,0.38730344]
[1736869715636,3.52294487,3205.5,3205.3,0.38730344]
[1736869715841,3.52294487,3205.5,3205.4,0.38727011]
[1736869716040,3.83501487,3205.5,3205.2,0.31209]
[1736869716344,0.31208,3205.4,3205.3,0.38724701]
[1736869716939,3.52294487,3205.5,3205.3,0.38724701]
[1736869716940,3.83501487,3205.5,3205.3,0.38740435]
[1736869717144,3.83501487,3205.5,3205.4,0.38740435]
[1736869717744,3.83501487,3205.5,3205.4,0.38745385]
[1736869717745,3.52294487,3205.5,3205.4,0.38745385]
[1736869718353,3.83501487,3205.5,3205.4,0.38745385]
[1736869718652,3.52294487,3205.5,3204.6,3.2078]
[1736869718848,3.52294487,3205.5,3204.7,0.38752062]
[1736869719054,3.52294487,3205.5,3204.8,0.38752062]
[1736869719253,3.52294487,3205.5,3205.1,0.3121]
[1736869719446,3.52294487,3205.5,3205.2,0.38752062]
[1736869719645,3.52294487,3205.5,3205.3,0.38752062]
[1736869719948,3.83501487,3205.5,3205.4,0.38746052]
[1736869720549,3.52294487,3205.5,3205.4,0.38746052]
[1736869720746,3.83501487,3205.5,3205.4,0.38746052]
[1736869720948,3.52294487,3205.5,3205.4,0.38746052]
[1736869721149,3.83501487,3205.5,3205.4,0.38737417]
[1736869721350,0.31208,3205.4,3205.2,0.31209]
[1736869721545,0.31208,3205.4,3205.3,0.38736096]
[1736869722652,3.3474719,3205.4,3204.6,3.2078]
[1736869722850,0.31211,3205.2,3204.8,0.31214]
[1736869723147,3.3474719,3205.5,3205.1,3.2078]
[1736869723347,0.9412,3205.8,3205.2,0.38747834]
[1736869723542,0.9412,3205.8,3205.3,0.38747834]
[1736869723757,0.9412,3205.8,3205.5,0.31207]
[1736869723758,3.561201,3205.7,3205.5,0.31207]
[1736869723949,0.31202,3206.0,3205.6,3.59545708]
[1736869724146,0.31199,3206.3,3206.0,0.31202]
[1736869724352,3.2078,3206.4,3205.7,2.71597006]
[1736869724548,3.74970784,3206.3,3206.1,0.312]
[1736869724744,3.43771784,3206.3,3205.7,43.51597006]
[1736869725051,1.4449,3206.6,3206.0,5.92377006]
[1736869725248,3.2078,3207.2,3206.4,3.2078]
[1736869725442,3.2078,3207.7,3206.8,3.2078]
[1736869725645,3.29104221,3207.4,3206.8,6.49481809]
[1736869725842,3.2078,3207.7,3207.2,0.3119]
[1736869725843,0.31188,3207.5,3207.2,0.3119]
[1736869726046,3.2078,3207.7,3206.8,6.49481809]
[1736869726248,3.2078,3207.7,3206.9,0.38723962]
[1736869726249,3.29104221,3207.3,3206.9,0.38723962]
[1736869726448,3.2078,3208.0,3207.8,0.31184]
[1736869726649,3.2078,3208.0,3207.0,0.38723962]
[1736869726650,3.2078,3208.5,3207.3,6.49481809]
[1736869726860,3.46270981,3207.8,3207.5,0.31187]
[1736869727059,3.46270981,3208.1,3207.6,41.1867434]
[1736869727256,0.31184,3207.9,3207.7,0.38671329]
[1736869727446,3.34000504,3207.7,3207.6,40.8]
[1736869727758,0.4998,3208.4,3207.6,40.8]
[1736869727759,0.31184,3207.9,3207.6,40.8]
[1736869727957,4.11950504,3208.3,3207.6,40.8]
[1736869728151,3.78681809,3208.4,3207.6,40.8]
[1736869728152,3.34000504,3207.7,3207.6,40.8]
[1736869728354,3.28991039,3208.0,3207.6,40.8]
[1736869728656,0.31187,3207.6,3207.3,3.2078]
[1736869728847,0.31186,3207.7,3207.3,3.2078]
[1736869729054,0.31186,3207.7,3207.3,3.51969]
[1736869729257,3.28991039,3208.2,3207.4,40.8]
[1736869729458,0.31185,3207.7,3207.4,0.77139664]
[1736869729757,0.31185,3207.7,3207.4,0.38569803]
[1736869729955,0.31185,3207.8,3207.4,0.38569803]
[1736869730158,0.31186,3207.7,3207.4,0.38569803]
[1736869730355,3.44231216,3207.7,3207.4,0.69757803]
[1736869730551,0.31185,3207.8,3207.4,0.38569803]
[1736869730754,0.31186,3207.7,3207.4,0.38569803]
[1736869730957,3.75417216,3207.7,3207.4,0.38569803]
[1736869731264,0.31185,3207.7,3207.4,0.38569803]
[1736869731647,0.31183,3208.0,3207.5,0.31187]
[1736869731850,0.31183,3208.0,3207.4,0.38569803]
[1736869731851,0.31182,3208.1,3207.4,3.67271612]
[1736869732070,0.31183,3208.0,3207.5,0.4932]
[1736869732359,0.31186,3207.7,3207.4,0.38569803]
[1736869732555,3.98727,3208.5,3207.4,0.69757803]
[1736869732755,0.31184,3207.9,3207.5,0.31187]
[1736869733256,3.55001477,3207.8,3207.5,0.31187]
[1736869733560,3.55001477,3207.8,3207.4,0.69756803]
[1736869733860,3.2078,3208.0,3207.4,0.38569803]
[1736869734056,0.31184,3207.8,3207.4,0.69757803]
[1736869734356,3.41490742,3207.7,3207.4,0.38569803]
[1736869734556,0.31187,3207.5,3207.4,0.38569803]
[1736869735056,3.41490742,3207.5,3207.4,0.38569803]
[1736869735261,3.72677742,3207.5,3207.4,0.38569803]
[1736869735458,0.31187,3207.5,3207.4,0.38569803]
[1736869735663,3.78405038,3207.5,3207.4,0.38569803]
[1736869737758,3.47218038,3207.5,3207.4,0.38569803]
[1736869737953,3.78405038,3207.5,3207.4,0.38569803]
[1736869738159,0.31187,3207.5,3207.4,0.38569803]
[1736869738459,3.59768746,3207.5,3207.4,0.38569803]
[1736869739160,3.28581746,3207.5,3207.4,0.69757803]
[1736869739459,3.28581746,3207.5,3207.4,0.38569803]
[1736869739460,0.31187,3207.5,3207.4,0.38569803]
[1736869739857,3.68088422,3207.5,3207.4,0.38569803]
[1736869740256,3.68088422,3207.5,3207.4,0.69757803]
[1736869740561,3.68088422,3207.5,3207.4,0.38569803]
[1736869740760,0.31187,3207.5,3207.4,0.38569803]
[1736869740961,3.70875396,3207.5,3207.4,0.38569803]
[1736869741261,3.70875396,3207.5,3207.4,0.69757803]
[1736869741262,3.39688396,3207.5,3207.4,0.69757803]
[1736869741764,0.31187,3207.5,3207.4,0.38569803]
[1736869742264,3.91509154,3207.5,3207.4,0.38569803]
[1736869743467,7.12289154,3207.5,3207.4,0.38569803]
[1736869743677,11.81102154,3207.5,3206.5,3.2078]
[1736869743972,0.31198,3206.4,3206.3,1.24999]
[1736869744269,0.31199,3206.3,3206.1,3.2078]
[1736869744462,0.312,3206.2,3206.1,3.2078]
[1736869744970,0.31203,3205.9,3205.8,40.8]
[1736869745160,0.31203,3205.9,3205.8,41.11204]
[1736869745360,0.31203,3205.9,3205.5,3.6656]
[1736869745361,3.9878,3206.3,3205.6,0.31205]
[1736869745667,0.31203,3206.0,3205.8,0.31204]
[1736869745867,0.31204,3205.9,3205.7,0.31204]
[1736869746071,3.72249597,3205.9,3205.7,0.31204]
[1736869746285,0.31204,3205.9,3205.7,0.31204]
[1736869746461,0.31205,3205.7,3205.5,3.97766]
[1736869746661,0.78001,3206.2,3205.5,3.97766]
[1736869746662,3.70023349,3205.8,3205.5,3.97766]
[1736869746872,0.31204,3205.8,3205.5,44.77766]
[1736869747370,3.9878,3206.3,3205.5,44.4656]
[1736869747670,3.8061119,3206.1,3205.8,0.31203]
[1736869747965,3.2078,3206.3,3205.5,47.75261809]
[1736869748267,3.2078,3206.3,3206.0,0.31201]
[1736869748467,0.312,3206.2,3205.9,3.51983]
[1736869748671,0.312,3206.2,3205.8,0.31204]
[1736869748875,0.31201,3206.1,3205.6,0.31206]
[1736869749070,3.2078,3206.3,3205.9,0.31203]
[1736869749265,3.466526,3206.0,3205.9,0.31203]
[1736869749574,0.31201,3206.1,3205.8,0.31203]
[1736869749776,3.2078,3206.3,3205.5,47.75261809]
[1736869750275,3.778536,3206.2,3205.9,0.31202]
[1736869750862,3.2078,3206.3,3205.9,3.2078]
[1736869751066,3.51979,3206.3,3206.0,0.31201]
[1736869751266,3.51979,3206.3,3205.9,3.2078]
[1736869751267,3.2078,3206.3,3205.9,3.2078]
[1736869751467,0.31201,3206.1,3205.9,3.2078]
[1736869751667,0.31201,3206.1,3205.9,3.51983]
[1736869751867,0.31202,3206.0,3205.9,3.2078]
[1736869752077,3.86338349,3206.0,3205.9,3.2078]
[1736869752272,0.31202,3206.0,3205.9,3.2078]
[1736869752677,0.31202,3206.0,3205.5,40.8]
[1736869752678,3.46830096,3206.0,3205.5,40.8]
[1736869752978,3.9878,3206.3,3205.5,40.8]
[1736869753279,3.78030096,3206.2,3205.9,0.31202]
[1736869753467,0.312,3206.2,3205.9,0.31202]
[1736869753781,0.312,3206.2,3206.0,0.31202]
[1736869753975,0.312,3206.2,3205.8,3.2078]
[1736869754179,0.4801,3206.6,3205.8,3.2078]
[1736869754477,0.31198,3206.4,3206.1,0.312]
[1736869754775,0.31199,3206.3,3205.8,3.2078]
[1736869754974,3.85518813,3206.3,3206.0,0.31201]
[1736869755184,3.85517813,3206.4,3206.1,0.312]
[1736869755483,0.31198,3206.4,3206.1,0.312]
[1736869755675,0.31201,3206.2,3205.9,0.31203]
[1736869755982,6.90860653,3206.5,3205.8,3.51983]
[1736869756281,0.31201,3206.1,3205.8,3.51983]
[1736869757370,0.31201,3206.1,3205.9,0.31203]
[1736869757582,0.31203,3205.9,3205.8,3.2078]